fUST/lending_fUST_20241108
["ID","MTS","AMOUNT","RATE_DAILY","PERIOD"]
[341645081,1731057464940,-1036.71,0.00021917,2]
[341645082,1731057464999,-4367.33,0.00021917,2]
[341645083,1731057465051,-8701.01,0.00021917,2]
[341645084,1731057465106,-8398.74,0.00021917,2]
[341645085,1731057465159,-578.54869807,0.00021917,2]
[341645086,1731057465212,-500.0,0.00021917,2]
[341645087,1731057465265,-518.93973576,0.00021917,2]
[341645088,1731057465323,-753.71,0.00021917,2]
[341645089,1731057465379,-500.0,0.00021917,2]
[341645090,1731057465435,-464.90244324,0.00021917,2]
[341645091,1731057465491,-500.0,0.00021917,2]
[341645092,1731057465545,-306.06309448,0.00021917,2]
[341645093,1731057465599,-500.0,0.00021917,2]
[341645094,1731057465649,-500.0,0.00021917,2]
[341645095,1731057465700,-500.0,0.00021917,2]
[341645096,1731057465748,-500.0,0.00021917,2]
[341645097,1731057465798,-500.0,0.00021917,2]
[341645098,1731057465848,-500.0,0.00021917,2]
[341645099,1731057465898,-500.0,0.00021917,2]
[341645100,1731057466133,-500.0,0.00021917,2]
[341645101,1731057466178,-193.07253746,0.00021917,2]
[341645102,1731057466222,-892.73,0.00021917,2]
[341645103,1731057466264,-500.0,0.00021917,2]
[341645104,1731057466312,-500.0,0.00021917,2]
[341645105,1731057466356,-500.0,0.00021917,2]
[341645106,1731057466398,-502.61058034,0.00021917,2]
[341645107,1731057466440,-500.0,0.00021917,2]
[341645108,1731057466482,-500.0,0.00021917,2]
[341645109,1731057466526,-500.0,0.00021917,2]
[341645110,1731057466568,-502.25816379,0.00021917,2]
[341645111,1731057466611,-500.0,0.00021917,2]
[341645112,1731057466653,-500.0,0.00021917,2]
[341645113,1731057466696,-500.0,0.00021917,2]
[341645114,1731057466739,-500.0,0.00021917,2]
[341645115,1731057466782,-500.0,0.00021917,2]
[341645116,1731057466824,-616.3945092,0.00021917,2]
[341645117,1731057466866,-500.0,0.00021917,2]
[341645118,1731057466908,-555.27,0.00021917,2]
[341645119,1731057467032,-500.0,0.00021917,2]
[341645120,1731057467075,-462.14527762,0.00021917,2]
[341645121,1731057467118,-500.0,0.00021917,2]
[341645122,1731057467161,-473.99942402,0.00021917,2]
[341645123,1731057467204,-500.0,0.00021917,2]
[341645124,1731057467248,-777.15,0.00021917,2]
[341645125,1731057467290,-500.0,0.00021917,2]
[341645126,1731057467333,-500.0,0.00021917,2]
[341645127,1731057467376,-540.26,0.00021917,2]
[341645128,1731057467421,-500.0,0.00021917,2]
[341645129,1731057467467,-500.0,0.00021917,2]
[341645130,1731057467510,-549.789739,0.00021917,2]
[341645131,1731057467554,-500.0,0.00021917,2]
[341645132,1731057467598,-500.0,0.00021917,2]
[341645133,1731057467641,-555.5,0.00021917,2]
[341645134,1731057467681,-500.0,0.00021917,2]
[341645135,1731057467724,-502.22676742,0.00021917,2]
[341645136,1731057467768,-500.0,0.00021917,2]
[341645137,1731057467818,-500.0,0.00021917,2]
[341645138,1731057467939,-500.0,0.00021917,2]
[341645139,1731057467985,-500.0,0.00021917,2]
[341645140,1731057468033,-500.0,0.00021917,2]
[341645141,1731057468081,-500.0,0.00021917,2]
[341645142,1731057468125,-500.0,0.00021917,2]
[341645143,1731057468171,-2862.36,0.00021917,2]
[341645144,1731057468213,-500.0,0.00021917,2]
[341645145,1731057468259,-500.0,0.00021917,2]
[341645146,1731057468305,-500.0,0.00021917,2]
[341645147,1731057468349,-500.0,0.00021917,2]
[341645148,1731057468394,-687.35,0.00021917,2]
[341645149,1731057468439,-500.0,0.00021917,2]
[341645150,1731057468483,-261.51287549,0.00021917,2]
[341645151,1731057468529,-534.77611955,0.00021917,2]
[341645152,1731057468575,-500.0,0.00021917,2]
[341645153,1731057468620,-500.0,0.00021917,2]
[341645154,1731057468663,-500.0,0.00021917,2]
[341645155,1731057468707,-500.0,0.00021917,2]
[341645156,1731057468751,-500.0,0.00021917,2]
[341645157,1731057468880,-500.0,0.00021917,2]
[341645158,1731057468927,-500.0,0.00021917,2]
[341645159,1731057468972,-163.0,0.00022,2]
[341645160,1731057469015,-202.0,0.00022,2]
[341645161,1731057469061,-164.0,0.00022,2]
[341645162,1731057469107,-184.78378039,0.00022091,2]
[341645163,1731057469152,-629.94898804,0.0002219,2]
[341645164,1731057469196,-500.0,0.00022191,2]
[341645165,1731057469240,-500.0,0.00022191,2]
[341645166,1731057469287,-500.0,0.00022191,2]
[341645167,1731057469331,-500.0,0.00022191,2]
[341645168,1731057469375,-500.0,0.00022191,2]
[341645169,1731057469419,-500.0,0.00022191,2]
[341645170,1731057469461,-500.0,0.00022191,2]
[341645171,1731057469503,-545.69651169,0.00022191,2]
[341645172,1731057469548,-500.0,0.00022191,2]
[341645173,1731057469590,-310.39675472,0.00022191,2]
[341645174,1731057469632,-500.0,0.00022191,2]
[341645175,1731057469674,-500.0,0.00022191,2]
[341645176,1731057469802,-500.0,0.00022191,2]
[341645177,1731057469845,-521.38574639,0.00022191,2]
[341645178,1731057469888,-1094.1,0.00022191,2]
[341645179,1731057469931,-500.0,0.00022191,2]
[341645180,1731057469977,-1042.87,0.00022191,2]
[341645181,1731057470020,-500.0,0.00022191,2]
[341645182,1731057470104,-500.0,0.00022191,2]
[341645183,1731057470148,-500.0,0.00022191,2]
[341645184,1731057470192,-4248.31,0.00022191,2]
[341645185,1731057470234,-500.0,0.00022191,2]
[341645186,1731057470276,-500.0,0.00022191,2]
[341645187,1731057470322,-500.0,0.00022191,2]
[341645188,1731057470366,-2736.72,0.00022191,2]
[341645189,1731057470409,-500.0,0.00022191,2]
[341645190,1731057470450,-162.24876163,0.00022191,2]
[341645191,1731057470492,-500.0,0.00022191,2]
[341645192,1731057470535,-500.0,0.00022191,2]
[341645193,1731057470579,-500.0,0.00022191,2]
[341645194,1731057470623,-922.31,0.00022191,2]
[341645195,1731057470666,-500.0,0.00022191,2]
[341645196,1731057470789,-557.65,0.00022191,2]
[341645197,1731057470833,-500.0,0.00022191,2]
[341645198,1731057470877,-500.0,0.00022191,2]
[341645199,1731057470922,-500.0,0.00022191,2]
[341645200,1731057470964,-500.0,0.00022191,2]
[341645201,1731057471007,-500.0,0.00022191,2]
[341645202,1731057471051,-4367.33,0.00022191,2]
[341645203,1731057471092,-1036.71,0.00022191,2]
[341645204,1731057471135,-8701.01,0.00022191,2]
[341645205,1731057471179,-8398.74,0.00022191,2]
[341645206,1731057471221,-500.0,0.00022191,2]
[341645207,1731057471263,-753.71,0.00022191,2]
[341645208,1731057471304,-500.0,0.00022191,2]
[341645209,1731057471347,-500.0,0.00022191,2]
[341645210,1731057471390,-500.0,0.00022191,2]
[341645211,1731057471431,-500.0,0.00022191,2]
[341645212,1731057471472,-500.0,0.00022191,2]
[341645213,1731057471515,-500.0,0.00022191,2]
[341645214,1731057471557,-892.73,0.00022191,2]
[341645215,1731057471673,-500.0,0.00022191,2]
[341645216,1731057471715,-500.0,0.00022191,2]
[341645217,1731057471758,-500.0,0.00022191,2]
[341645218,1731057471802,-500.0,0.00022191,2]
[341645219,1731057471844,-500.0,0.00022191,2]
[341645220,1731057471886,-555.27,0.00022191,2]
[341645221,1731057471930,-500.0,0.00022191,2]
[341645222,1731057471972,-500.0,0.00022191,2]
[341645223,1731057472019,-500.0,0.00022191,2]
[341645224,1731057472062,-777.15,0.00022191,2]
[341645225,1731057472103,-500.0,0.00022191,2]
[341645226,1731057472145,-500.0,0.00022191,2]
[341645227,1731057472187,-540.26,0.00022191,2]
[341645228,1731057472228,-500.0,0.00022191,2]
[341645229,1731057472272,-555.5,0.00022191,2]
[341645230,1731057472318,-500.0,0.00022191,2]
[341645231,1731057472362,-500.0,0.00022191,2]
[341645232,1731057472405,-2862.36,0.00022191,2]
[341645233,1731057472447,-500.0,0.00022191,2]
[341645234,1731057472565,-500.0,0.00022191,2]
[341645235,1731057472609,-687.35,0.00022191,2]
[341645236,1731057472654,-500.0,0.00022191,2]
[341645237,1731057472697,-500.0,0.00022191,2]
[341645238,1731057472740,-324.77103365,0.00022191,2]
[341645239,1731057472785,-2550.563648,0.00022376,2]
[341645240,1731057472827,-184.92826503,0.00022464,2]
[341645241,1731057472870,-207.16656348,0.00022464,2]
[341645242,1731057472913,-174.27133964,0.00022464,2]
[341645243,1731057472958,-221.19693841,0.00022464,2]
[341645244,1731057473003,-293.64649261,0.00022464,2]
[341645245,1731057473050,-500.0,0.00022465,2]
[341645246,1731057473094,-500.0,0.00022465,2]
[341645247,1731057473138,-500.0,0.00022465,2]
[341645248,1731057473181,-500.0,0.00022465,2]
[341645249,1731057473224,-500.0,0.00022465,2]
[341645250,1731057473268,-500.0,0.00022465,2]
[341645251,1731057473316,-500.0,0.00022465,2]
[341645252,1731057473360,-1094.1,0.00022465,2]
[341645253,1731057473489,-500.0,0.00022465,2]
[341645254,1731057473537,-1042.87,0.00022465,2]
[341645255,1731057473581,-500.0,0.00022465,2]
[341645256,1731057473625,-500.0,0.00022465,2]
[341645257,1731057473670,-4248.31,0.00022465,2]
[341645258,1731057473715,-500.0,0.00022465,2]
[341645259,1731057473761,-2736.72,0.00022465,2]
[341645260,1731057473803,-194.92605251,0.00022465,2]
[341645261,1731057473847,-500.0,0.00022465,2]
[341645262,1731057473890,-576.74410653,0.00022465,2]
[341645263,1731057473936,-922.31,0.00022465,2]
[341645264,1731057473980,-500.0,0.00022465,2]
[341645265,1731057474031,-557.65,0.00022465,2]
[341645266,1731057474074,-500.0,0.00022465,2]
[341645267,1731057474118,-500.0,0.00022465,2]
[341645268,1731057474163,-572.18765485,0.00022465,2]
[341645269,1731057474207,-500.0,0.00022465,2]
[341645270,1731057474251,-500.0,0.00022465,2]
[341645271,1731057474298,-1036.71,0.00022465,2]
[341645272,1731057474341,-4367.33,0.00022465,2]
[341645273,1731057474466,-8701.01,0.00022465,2]
[341645274,1731057474511,-8398.74,0.00022465,2]
[341645275,1731057474555,-753.71,0.00022465,2]
[341645276,1731057474598,-500.0,0.00022465,2]
[341645277,1731057474641,-500.0,0.00022465,2]
[341645278,1731057474683,-500.0,0.00022465,2]
[341645279,1731057474730,-500.0,0.00022465,2]
[341645280,1731057474776,-892.73,0.00022465,2]
[341645281,1731057474822,-500.0,0.00022465,2]
[341645282,1731057474866,-500.0,0.00022465,2]
[341645283,1731057474909,-500.0,0.00022465,2]
[341645284,1731057474954,-500.0,0.00022465,2]
[341645285,1731057474998,-500.0,0.00022465,2]
[341645286,1731057475041,-555.27,0.00022465,2]
[341645287,1731057475085,-500.0,0.00022465,2]
[341645288,1731057475128,-500.0,0.00022465,2]
[341645289,1731057475172,-777.15,0.00022465,2]
[341645290,1731057475215,-540.26,0.00022465,2]
[341645291,1731057475257,-500.0,0.00022465,2]
[341645292,1731057475384,-555.5,0.00022465,2]
[341645293,1731057475429,-500.0,0.00022465,2]
[341645294,1731057475475,-500.0,0.00022465,2]
[341645295,1731057475519,-2862.36,0.00022465,2]
[341645296,1731057475564,-500.0,0.00022465,2]
[341645297,1731057475607,-500.0,0.00022465,2]
[341645298,1731057475653,-687.35,0.00022465,2]
[341645299,1731057475696,-500.0,0.00022465,2]
[341645300,1731057475739,-500.0,0.00022465,2]
[341645301,1731057475781,-500.0,0.00022666,2]
[341645302,1731057475825,-500.0,0.00022678,2]
[341645303,1731057475868,-500.0,0.00022678,2]
[341645304,1731057475911,-500.0,0.00022714,2]
[341645305,1731057475955,-500.0,0.00022739,2]
[341645306,1731057475999,-500.0,0.00022739,2]
[341645307,1731057476041,-500.0,0.00022739,2]
[341645308,1731057476085,-500.0,0.00022739,2]
[341645309,1731057476128,-500.0,0.00022739,2]
[341645310,1731057476171,-500.0,0.00022739,2]
[341645311,1731057476294,-500.0,0.00022739,2]
[341645312,1731057476344,-1094.1,0.00022739,2]
[341645313,1731057476390,-500.0,0.00022739,2]
[341645314,1731057476436,-500.0,0.00022739,2]
[341645315,1731057476484,-1042.87,0.00022739,2]
[341645316,1731057476529,-500.0,0.00022739,2]
[341645317,1731057476576,-4248.31,0.00022739,2]
[341645318,1731057476620,-500.0,0.00022739,2]
[341645319,1731057476665,-2736.72,0.00022739,2]
[341645320,1731057476709,-500.0,0.00022739,2]
[341645321,1731057476753,-922.31,0.00022739,2]
[341645322,1731057476797,-500.0,0.00022739,2]
[341645323,1731057476842,-557.65,0.00022739,2]
[341645324,1731057476884,-500.0,0.00022739,2]
[341645325,1731057476930,-500.0,0.00022739,2]
[341645326,1731057476973,-500.0,0.00022739,2]
[341645327,1731057477017,-500.0,0.00022739,2]
[341645328,1731057477064,-1036.71,0.00022739,2]
[341645329,1731057477108,-4367.33,0.00022739,2]
[341645330,1731057477259,-8701.01,0.00022739,2]
[341645331,1731057477309,-8398.74,0.00022739,2]
[341645332,1731057477359,-753.71,0.00022739,2]
[341645333,1731057477406,-500.0,0.00022739,2]
[341645334,1731057477451,-500.0,0.00022739,2]
[341645335,1731057477497,-500.0,0.00022739,2]
[341645336,1731057477543,-500.0,0.00022739,2]
[341645337,1731057477592,-892.73,0.00022739,2]
[341645338,1731057477636,-500.0,0.00022739,2]
[341645339,1731057477681,-500.0,0.00022739,2]
[341645340,1731057477725,-500.0,0.00022739,2]
[341645341,1731057477770,-500.0,0.00022739,2]
[341645342,1731057477814,-500.0,0.00022739,2]
[341645343,1731057477858,-555.27,0.00022739,2]
[341645344,1731057477903,-500.0,0.00022739,2]
[341645345,1731057477947,-500.0,0.00022739,2]
[341645346,1731057477991,-777.15,0.00022739,2]
[341645347,1731057478035,-540.26,0.00022739,2]
[341645348,1731057478077,-500.0,0.00022739,2]
[341645349,1731057478120,-555.5,0.00022739,2]
[341645350,1731057478243,-500.0,0.00022739,2]
[341645351,1731057478288,-500.0,0.00022739,2]
[341645352,1731057478333,-2862.36,0.00022739,2]
[341645353,1731057478381,-500.0,0.00022739,2]
[341645354,1731057478423,-500.0,0.00022739,2]
[341645355,1731057478466,-687.35,0.00022739,2]
[341645356,1731057478507,-500.0,0.00022739,2]
[341645357,1731057478551,-500.0,0.00023013,2]
[341645358,1731057478593,-500.0,0.00023013,2]
[341645359,1731057478636,-500.0,0.00023013,2]
[341645360,1731057478678,-500.0,0.00023013,2]
[341645361,1731057478720,-500.0,0.00023013,2]
[341645362,1731057478764,-500.0,0.00023013,2]
[341645363,1731057478808,-500.0,0.00023013,2]
[341645364,1731057478852,-1094.1,0.00023013,2]
[341645365,1731057478895,-500.0,0.00023013,2]
[341645366,1731057478939,-500.0,0.00023013,2]
[341645367,1731057478985,-1042.87,0.00023013,2]
[341645368,1731057479028,-4248.31,0.00023013,2]
[341645369,1731057479150,-500.0,0.00023013,2]
[341645370,1731057479195,-2736.72,0.00023013,2]
[341645371,1731057479237,-500.0,0.00023013,2]
[341645372,1731057479282,-922.31,0.00023013,2]
[341645373,1731057479336,-500.0,0.00023013,2]
[341645374,1731057479381,-557.65,0.00023013,2]
[341645375,1731057479426,-500.0,0.00023013,2]
[341645376,1731057479471,-500.0,0.00023013,2]
[341645377,1731057479515,-500.0,0.00023013,2]
[341645378,1731057479558,-1036.71,0.00023013,2]
[341645379,1731057479601,-4367.33,0.00023013,2]
[341645380,1731057479645,-8701.01,0.00023013,2]
[341645381,1731057479688,-8398.74,0.00023013,2]
[341645382,1731057479732,-753.71,0.00023013,2]
[341645383,1731057479775,-500.0,0.00023013,2]
[341645384,1731057479819,-500.0,0.00023013,2]
[341645385,1731057479861,-500.0,0.00023013,2]
[341645386,1731057479905,-892.73,0.00023013,2]
[341645387,1731057479948,-500.0,0.00023013,2]
[341645388,1731057480068,-500.0,0.00023013,2]
[341645389,1731057480112,-500.0,0.00023013,2]
[341645390,1731057480157,-500.0,0.00023013,2]
[341645391,1731057480201,-500.0,0.00023013,2]
[341645392,1731057480246,-555.27,0.00023013,2]
[341645393,1731057480292,-500.0,0.00023013,2]
[341645394,1731057480337,-500.0,0.00023013,2]
[341645395,1731057480383,-777.15,0.00023013,2]
[341645396,1731057480426,-540.26,0.00023013,2]
[341645397,1731057480470,-500.0,0.00023013,2]
[341645398,1731057480516,-555.5,0.00023013,2]
[341645399,1731057480562,-500.0,0.00023013,2]
[341645400,1731057480606,-500.0,0.00023013,2]
[341645401,1731057480651,-2862.36,0.00023013,2]
[341645402,1731057480741,-500.0,0.00023013,2]
[341645403,1731057480786,-411.05155645,0.00023013,2]
[341645404,1731057480831,-687.35,0.00023013,2]
[341645405,1731057480875,-500.0,0.00023013,2]
[341645406,1731057480917,-164.0,0.00023014,2]
[341645407,1731057481041,-629.6252219,0.00023283,2]
[341645408,1731057481085,-500.0,0.00023287,2]
[341645409,1731057481128,-500.0,0.00023287,2]
[341645410,1731057481171,-500.0,0.00023287,2]
[341645411,1731057481216,-500.0,0.00023287,2]
[341645412,1731057481259,-500.0,0.00023287,2]
[341645413,1731057481302,-1094.1,0.00023287,2]
[341645414,1731057481345,-387.26563759,0.00023287,2]
[341645415,1731057481390,-500.0,0.00023287,2]
[341645416,1731057481434,-1042.87,0.00023287,2]
[341645417,1731057481478,-4248.31,0.00023287,2]
[341645418,1731057481521,-500.0,0.00023287,2]
[341645419,1731057481566,-2736.72,0.00023287,2]
[341645420,1731057481608,-500.0,0.00023287,2]
[341645421,1731057481652,-922.31,0.00023287,2]
[341645422,1731057481695,-500.0,0.00023287,2]
[341645423,1731057481738,-557.65,0.00023287,2]
[341645424,1731057481780,-500.0,0.00023287,2]
[341645425,1731057481823,-500.0,0.00023287,2]
[341645426,1731057481865,-500.0,0.00023287,2]
[341645427,1731057481986,-1036.71,0.00023287,2]
[341645428,1731057482032,-4367.33,0.00023287,2]
[341645429,1731057482077,-8701.01,0.00023287,2]
[341645430,1731057482122,-8398.74,0.00023287,2]
[341645431,1731057482166,-753.71,0.00023287,2]
[341645432,1731057482210,-500.0,0.00023287,2]
[341645433,1731057482253,-500.0,0.00023287,2]
[341645434,1731057482296,-500.0,0.00023287,2]
[341645435,1731057482340,-892.73,0.00023287,2]
[341645436,1731057482388,-500.0,0.00023287,2]
[341645437,1731057482432,-500.0,0.00023287,2]
[341645438,1731057482475,-500.0,0.00023287,2]
[341645439,1731057482519,-500.0,0.00023287,2]
[341645440,1731057482563,-500.0,0.00023287,2]
[341645441,1731057482606,-555.27,0.00023287,2]
[341645442,1731057482649,-500.0,0.00023287,2]
[341645443,1731057482691,-500.0,0.00023287,2]
[341645444,1731057482741,-777.15,0.00023287,2]
[341645445,1731057482786,-540.26,0.00023287,2]
[341645446,1731057482914,-500.0,0.00023287,2]
[341645447,1731057482963,-555.5,0.00023287,2]
[341645448,1731057483011,-500.0,0.00023287,2]
[341645449,1731057483061,-249.4068319,0.00023287,2]
[341645450,1731057483110,-2862.36,0.00023287,2]
[341645451,1731057483157,-500.0,0.00023287,2]
[341645452,1731057483205,-687.35,0.00023287,2]
[341645453,1731057483249,-182.53760895,0.00023287,2]
[341645454,1731057483295,-500.0,0.00023288,2]
[341645455,1731057483341,-628.18722148,0.00023288,2]
[341645456,1731057483388,-500.0,0.00023288,2]
[341645457,1731057483435,-500.0,0.00023288,2]
[341645458,1731057483481,-500.0,0.00023288,2]
[341645459,1731057483526,-500.0,0.00023288,2]
[341645460,1731057483573,-500.0,0.00023288,2]
[341645461,1731057483618,-500.0,0.00023288,2]
[341645462,1731057483663,-500.0,0.00023288,2]
[341645463,1731057483707,-500.0,0.00023288,2]
[341645464,1731057483753,-500.0,0.00023288,2]
[341645465,1731057483884,-500.0,0.00023288,2]
[341645466,1731057483931,-500.0,0.00023288,2]
[341645467,1731057483978,-500.0,0.00023288,2]
[341645468,1731057484024,-500.0,0.00023288,2]
[341645469,1731057484072,-500.0,0.00023288,2]
[341645470,1731057484116,-500.0,0.00023288,2]
[341645471,1731057484160,-500.0,0.00023288,2]
[341645472,1731057484205,-500.0,0.00023288,2]
[341645473,1731057484251,-500.0,0.00023288,2]
[341645474,1731057484299,-500.0,0.00023288,2]
[341645475,1731057484345,-500.0,0.00023288,2]
[341645476,1731057484395,-500.0,0.00023288,2]
[341645477,1731057484442,-500.0,0.00023288,2]
[341645478,1731057484488,-500.0,0.00023288,2]
[341645479,1731057484535,-500.0,0.00023288,2]
[341645480,1731057484586,-500.0,0.00023288,2]
[341645481,1731057484631,-500.0,0.00023288,2]
[341645482,1731057484680,-500.0,0.00023288,2]
[341645483,1731057484725,-500.0,0.00023288,2]
[341645484,1731057484860,-500.0,0.00023288,2]
[341645485,1731057484907,-500.0,0.00023288,2]
[341645486,1731057484955,-500.0,0.00023288,2]
[341645487,1731057485000,-500.0,0.00023288,2]
[341645488,1731057485047,-500.0,0.00023288,2]
[341645489,1731057485096,-500.0,0.00023288,2]
[341645490,1731057485145,-500.0,0.00023288,2]
[341645491,1731057485193,-500.0,0.00023288,2]
[341645492,1731057485239,-403.68499328,0.00023288,2]
[341645493,1731057485285,-500.0,0.00023288,2]
[341645494,1731057485334,-500.0,0.00023288,2]
[341645495,1731057485380,-500.0,0.00023288,2]
[341645496,1731057485426,-500.0,0.00023288,2]
[341645497,1731057485472,-500.0,0.00023288,2]
[341645498,1731057485520,-500.0,0.00023288,2]
[341645499,1731057485564,-500.0,0.00023288,2]
[341645500,1731057485609,-500.0,0.00023288,2]
[341645501,1731057485652,-500.0,0.00023288,2]
[341645502,1731057485712,-500.0,0.00023288,2]
[341645503,1731057485774,-500.0,0.00023288,2]
[341645504,1731057485839,-500.0,0.00023288,2]
[341645505,1731057485901,-500.0,0.00023288,2]
[341645506,1731057485957,-500.0,0.00023288,2]
[341645507,1731057486020,-500.0,0.00023288,2]
[341645508,1731057486080,-500.0,0.00023288,2]
[341645509,1731057486140,-500.0,0.00023288,2]
[341645510,1731057486193,-500.0,0.00023288,2]
[341645511,1731057486243,-500.0,0.00023288,2]
[341645512,1731057486295,-500.0,0.00023288,2]
[341645513,1731057486349,-500.0,0.00023288,2]
[341645514,1731057486404,-500.0,0.00023288,2]
[341645515,1731057486459,-500.0,0.00023288,2]
[341645516,1731057486512,-500.0,0.00023288,2]
[341645517,1731057486563,-500.0,0.00023288,2]
[341645518,1731057486616,-500.0,0.00023288,2]
[341645519,1731057486817,-199.99999999,0.00023288,2]
[341645520,1731057486866,-500.0,0.00023288,2]
[341645521,1731057486911,-500.0,0.00023288,2]
[341645522,1731057486958,-170.2,0.00023448,2]
[341645523,1731057487004,-151.0,0.00023561,7]
[341645524,1731057487053,-1471.569922,0.00023561,7]
[341645525,1731057487099,-1471.569922,0.00023561,7]
[341645526,1731057487143,-500.0,0.00023561,2]
[341645527,1731057487189,-500.0,0.00023561,2]
[341645528,1731057487233,-738.979995,0.00023561,7]
[341645529,1731057487277,-738.979995,0.00023561,7]
[341645530,1731057487326,-500.0,0.00023561,2]
[341645531,1731057487373,-877.146847,0.00023561,7]
[341645532,1731057487417,-877.146847,0.00023561,7]
[341645533,1731057487461,-473.33090512,0.00023561,2]
[341645534,1731057487506,-626.56641061,0.00023561,2]
[341645535,1731057487552,-1094.1,0.00023561,2]
[341645536,1731057487597,-500.0,0.00023561,2]
[341645537,1731057487644,-1042.87,0.00023561,2]
[341645538,1731057487779,-4248.31,0.00023561,2]
[341645539,1731057487826,-500.0,0.00023561,2]
[341645540,1731057487877,-2736.72,0.00023561,2]
[341645541,1731057487923,-500.0,0.00023561,2]
[341645542,1731057487968,-922.31,0.00023561,2]
[341645543,1731057488015,-477.81847781,0.00023561,2]
[341645544,1731057488064,-557.65,0.00023561,2]
[341645545,1731057488109,-500.0,0.00023561,2]
[341645546,1731057488157,-500.0,0.00023561,2]
[341645547,1731057488203,-500.0,0.00023561,2]
[341645548,1731057488248,-1036.71,0.00023561,2]
[341645549,1731057488297,-4367.33,0.00023561,2]
[341645550,1731057488343,-8701.01,0.00023561,2]
[341645551,1731057488394,-8398.74,0.00023561,2]
[341645552,1731057488439,-753.71,0.00023561,2]
[341645553,1731057488485,-500.0,0.00023561,2]
[341645554,1731057488530,-500.0,0.00023561,2]
[341645555,1731057488576,-500.0,0.00023561,2]
[341645556,1731057488620,-892.73,0.00023561,2]
[341645557,1731057488749,-500.0,0.00023561,2]
[341645558,1731057488799,-500.0,0.00023561,2]
[341645559,1731057488848,-603.52674014,0.00023561,2]
[341645560,1731057488894,-500.0,0.00023561,2]
[341645561,1731057488940,-500.0,0.00023561,2]
[341645562,1731057488985,-555.27,0.00023561,2]
[341645563,1731057489029,-500.0,0.00023561,2]
[341645564,1731057489076,-500.0,0.00023561,2]
[341645565,1731057489122,-777.15,0.00023561,2]
[341645566,1731057489167,-540.26,0.00023561,2]
[341645567,1731057489211,-500.0,0.00023561,2]
[341645568,1731057489255,-555.5,0.00023561,2]
[341645569,1731057489301,-500.0,0.00023561,2]
[341645570,1731057489346,-2862.36,0.00023561,2]
[341645571,1731057489391,-500.0,0.00023561,2]
[341645572,1731057489436,-687.35,0.00023561,2]
[341645573,1731057489480,-1065.69604606,0.00023644,2]
[341645574,1731057489525,-201.388,0.00023684,2]
[341645575,1731057489567,-531.957,0.00023684,2]
[341645576,1731057489610,-2392.0,0.00023684,2]
[341645577,1731057489733,-150.0,0.000238,2]
[341645578,1731057489778,-321.0,0.00023817,2]
[341645579,1731057489822,-161.06357243,0.00023834,2]
[341645580,1731057489866,-1316.90037535,0.00023834,2]